[Event "CZE-ch U10 Open 2023"]
[Site "Teplice"]
[Date "2023.03.11"]
[Round "1.1"]
[White "Moravec, Rene"]
[Black "Filindash, Nikita"]
[Result "0-1"]
[ECO "A13"]
[WhiteElo "1216"]
[BlackElo "2021"]
[Annotator "TA"]
[PlyCount "110"]
[EventDate "2023.03.09"]
[EventType "swiss"]
[EventCountry "CZE"]
[SourceTitle "playchess.com"]
[Source "ChessBase"]
[SourceQuality "1"]
[TimeControl "40/5400+30:1800+30"]

{[%evp 9,109,10,10,2,17,8,16,8,25,18,22,2,7,4,0,-31,-27,-33,-17,-8,-21,-27,-14,-81,-76,-80,-80,-358,-352,-356,-351,-672,-622,-666,-668,-639,-579,-966,-977,-952,-777,-797,-797,-797,-718,-1021,-942,-1090,-966,-1022,-1033,-1212,-1187,-1133,-1109,-1275,-1264,-1250,-1231,-29976,-29977,-29980,-29981,-29987,-29988,-29988,-29980,-29980,-29981,-29986,-29982,-29982,-29983,-29983,-29967,-29984,-29985,-29993,-29994,-29994,-29994,-29996,-29997,-29997,-29996,-29996,-29997,-29997,-29998,-29998,-29996,-29998,-29997,-29997,-29998,-29998,-29998,-29998,-29998,-29998,-29999,-29999]} 1. c4 {[%emt 0:00:06]} e6 {[%emt 0:00:05]} 2. d4 {[%emt 0:01:00]} d5 {[%emt 0:00:11]} 3. e3 {[%emt 0:00:40]} c6 {[%emt 0:00:12]} 4. g3 {[%emt 0:00:50]} Nf6 {[%emt 0:00:10]} 5. Nd2 {[%emt 0:01:16]} Nbd7 {[%emt 0:00:24]} 6. Bg2 {[%emt 0:00:53] D10: Slav Defence: 3 cxd5 (without early Nf3) and 3 Nc3.} Bd6 {[%emt 0:01:01]} 7. Ngf3 {[%emt 0:00:59]} O-O {[%emt 0:00:18]} 8. O-O {[%emt 0:01:36] The position is equal.} Re8 {[%emt 0:00:33] [#]} 9. Qc2 $146 {[%emt 0:00:51]} ({Predecessor:} 9. b3 e5 10. dxe5 Nxe5 11. Bb2 Bg4 12. Qc2 Nxf3+ 13. Nxf3 dxc4 14. Qxc4 Be6 15. Qc2 {1-0 Goulyanitsky,A-Filchina,E (1827) Dvorkovich Memorial op 4th 2009 (4)}) 9... e5 {[%emt 0:02:56]} 10. dxe5 {[%emt 0:02:45]} Nxe5 {[%emt 0:00:15]} 11. cxd5 {[%emt 0:01:08]} Nxd5 {[%emt 0:05:30]} 12. Nb3 {[%emt 0:01:52]} Nxf3+ {[%emt 0:05:36]} 13. Bxf3 {[%emt 0:00:25]} Qf6 {[%emt 0:00:52]} 14. Bg2 {[%emt 0:01:22]} Nb4 {[%emt 0:02:37]} 15. Qe2 {[%emt 0:03:50]} Be6 {[%emt 0:02:47][%cal Ob4a2,Bc8e6,Be6a2,Ba2b3,Bb3c2,Bc2b1][%mdl 32]} 16. Nd4 {[%emt 0:02:41]} (16. Rd1 $11 Bd5 17. Bxd5 Nxd5 18. Qc2) 16... Bxa2 $17 {[%emt 0:01:24][%cal Of6d4] Black has more active pieces. The white rooks are badly placed.} ({Much weaker is} 16... Nxa2 $6 17. Bd2 $11) 17. b3 {[%emt 0:01:35]} Qxd4 {[%emt 0:00:18]} 18. Ba3 $2 {[%emt 0:01:59][%mdl 8192] [#] White does not recover from this.} (18. Qxa2 $17 Nxa2 19. exd4 Nxc1 20. Rfxc1) 18... Bxb3 $19 {[%emt 0:01:59]} 19. exd4 {[%emt 0:00:21]} Rxe2 {[%emt 0:00:14]} 20. Rab1 $2 {[%emt 0:00:11]} (20. Bxb4 Bxb4 21. Rab1) 20... Bc2 {[%emt 0:00:11]} 21. Bxb4 {[%emt 0:01:23]} Bxb1 {[%emt 0:00:14]} 22. Bxd6 {[%emt 0:00:10]} Bd3 {[%emt 0:00:18]} 23. Bf3 {[%emt 0:01:54]} Re6 {[%emt 0:00:16][%csl LRd6,LRf1]} 24. Rd1 {[%emt 0:00:33]} Bc2 {[%emt 0:00:09][%cal Oc2d1]} 25. Rd2 {[%emt 0:00:08]} Rxd6 {[%emt 0:00:10]} 26. Rxc2 {[%emt 0:00:18]} Rxd4 {[%emt 0:00:06][%mdl 4096] Endgame KRR-KRB} 27. Re2 {[%emt 0:00:22]} g6 {[%emt 0:00:12] And now ...a5 would win.} 28. Re7 {[%emt 0:00:08]} Rb8 {[%emt 0:00:13]} 29. Kg2 {[%emt 0:00:22]} a5 {[%emt 0:00:10] ...a4 would be deadly.} 30. Re3 {[%emt 0:00:06]} a4 {[%emt 0:00:10]} 31. Ra3 {[%emt 0:00:05]} c5 {[%emt 0:00:05][%cal Bc6c5,Bc5c4][%mdl 32] [#] ...b5 is the strong threat.} 32. Be2 {[%emt 0:00:27]} b5 {[%emt 0:00:07]} 33. Kf3 {[%emt 0:00:19]} Rb4 {[%emt 0:00:14] White must now prevent ...Rb3+.} 34. Ke3 {[%emt 0:00:06]} Rb3+ {[%emt 0:00:17] Black mates.} 35. Rxb3 {[%emt 0:00:16]} axb3 {[%emt 0:00:08] KR-KB} 36. Kd3 {[%emt 0:00:05]} c4+ {[%emt 0:00:10]} 37. Kc3 {[%emt 0:00:05]} Re8 {[%emt 0:00:10]} 38. Bf3 {[%emt 0:00:08]} Re1 {[%emt 0:00:20]} 39. Bc6 {[%emt 0:00:09]} Rc1+ {[%emt 0:00:13]} 40. Kb2 {[%emt 0:00:08]} Rc2+ {[%emt 0:00:09]} 41. Ka3 {[%emt 0:30:06]} Ra2+ {[%emt 0:30:09]} 42. Kb4 {[%emt 0:00:05]} b2 {[%emt 0:00:07]} 43. Bxb5 {[%emt 0:00:19]} b1=Q+ {[%emt 0:00:08]} 44. Kxc4 {[%emt 0:00:08]} Rc2+ {[%emt 0:00:37]} 45. Kd5 {[%emt 0:00:06]} Qxb5+ {[%emt 0:00:00]} 46. Ke4 {[%emt 0:00:24]} Qc4+ {[%emt 0:00:00]} 47. Kf3 {[%emt 0:00:09]} Qe2+ {[%emt 0:00:00]} 48. Kg2 {[%emt 0:00:09]} Qxf2+ {[%emt 0:00:03]} 49. Kh3 {[%emt 0:00:08]} Qxh2+ {[%emt 0:00:12]} 50. Kg4 {[%emt 0:00:14]} h5+ {[%emt 0:00:14]} 51. Kg5 {[%emt 0:00:07]} Qxg3+ {[%emt 0:00:09]} 52. Kf6 {[%emt 0:00:07]} Rc6+ {[%emt 0:00:10]} 53. Ke7 {[%emt 0:00:09]} Qe5+ {[%emt 0:00:09]} 54. Kd8 {[%emt 0:00:12]} Qc7+ {[%emt 0:00:16]} 55. Ke8 {[%emt 0:00:09]} Re6# {[%emt 0:00:07] Weighted Error Value: White=0.75/Black=0.28 (precise)} 0-1

[Event "CZE-ch U10 Open 2023"]
[Site "Teplice"]
[Date "2023.03.11"]
[Round "1.2"]
[White "Kolar, Edvard"]
[Black "Vorlik, Jachym"]
[Result "1-0"]
[ECO "C00"]
[WhiteElo "1518"]
[BlackElo "1204"]
[Annotator "NA RC COMBH"]
[PlyCount "121"]
[EventDate "2023.03.09"]
[EventType "swiss"]
[EventCountry "CZE"]
[SourceTitle "playchess.com"]
[Source "ChessBase"]
[SourceQuality "1"]
[TimeControl "40/5400+30:1800+30"]

1. e4 {[%emt 0:00:05]} e6 {[%emt 0:00:11]} 2. f4 {[%emt 0:00:10]} d5 {[%emt 0:00:52]} 3. e5 {[%emt 0:00:13]} c5 {[%emt 0:00:50]} 4. c3 {[%emt 0:00:45]} Nc6 {[%emt 0:00:42]} 5. d4 {[%emt 0:00:40]} Nge7 {[%emt 0:01:30]} 6. Nf3 {[%emt 0:02:25]} Nf5 {[%emt 0:01:03]} 7. Be2 {[%emt 0:01:20]} Be7 {[%emt 0:00:48]} 8. O-O {[%emt 0:00:44]} O-O {[%emt 0:00:35]} 9. Na3 {[%emt 0:09:09]} Qb6 {[%emt 0:02:15]} 10. Nc2 {[%emt 0:01:13]} Bd7 {[%emt 0:01:17]} 11. b3 {[%emt 0:03:29]} Rac8 {[%emt 0:01:41]} 12. Be3 {[%emt 0:02:19]} Qa5 {[%emt 0:01:19]} 13. Bd2 {[%emt 0:14:00]} Qb6 {[%emt 0:01:17]} 14. Be1 {[%emt 0:01:02]} a6 {[%emt 0:02:49]} 15. Bf2 {[%emt 0:01:27]} Qa5 {[%emt 0:01:31]} 16. c4 {[%emt 0:01:18]} dxc4 {[%emt 0:01:36]} 17. bxc4 {[%emt 0:00:15]} cxd4 {[%emt 0:00:24]} 18. Ncxd4 {[%emt 0:00:43]} Rfd8 {[%emt 0:01:29]} 19. Nxf5 {[%emt 0:02:57]} exf5 {[%emt 0:00:48]} 20. Qb3 {[%emt 0:02:27]} Rb8 {[%emt 0:03:02]} 21. Kh1 {[%emt 0:02:08]} Be6 {[%emt 0:01:47]} 22. Bb6 {[%emt 0:00:24]} Qb4 {[%emt 0:01:34]} 23. Bxd8 {[%emt 0:00:19]} Rxd8 {[%emt 0:00:21]} 24. Rad1 {[%emt 0:00:51]} Rc8 {[%emt 0:01:06]} 25. Nd4 {[%emt 0:01:38]} Nxd4 {[%emt 0:01:29]} 26. Qxb4 {[%emt 0:01:02]} Bxb4 {[%emt 0:00:51]} 27. Rxd4 {[%emt 0:00:15]} h6 {[%emt 0:00:49]} 28. Rb1 {[%emt 0:00:46]} Bc3 {[%emt 0:01:00]} 29. Rd3 {[%emt 0:01:26]} Ba5 {[%emt 0:01:51]} 30. Ra3 {[%emt 0:01:32]} Bd2 {[%emt 0:01:10]} 31. Rxb7 {[%emt 0:00:28]} Bxf4 {[%emt 0:00:40]} 32. Rxa6 {[%emt 0:01:32]} Bxe5 {[%emt 0:00:54]} 33. Ra5 {[%emt 0:01:20]} Bxc4 {[%emt 0:01:36]} 34. Bxc4 {[%emt 0:02:03]} Rxc4 {[%emt 0:00:22]} 35. Rb1 {[%emt 0:00:44]} Re4 {[%emt 0:00:57]} 36. a4 {[%emt 0:01:04]} Kh7 {[%emt 0:00:56]} 37. Rab5 {[%emt 0:00:53]} f6 {[%emt 0:01:04]} 38. a5 {[%emt 0:00:43]} Ra4 {[%emt 0:00:28]} 39. g3 {[%emt 0:01:38]} Kg6 {[%emt 0:01:21]} 40. Rc1 {[%emt 0:01:26]} Bd4 {[%emt 0:00:51]} 41. Rc6 {[%emt 0:37:56]} Kg5 {[%emt 0:31:05]} 42. Rc2 {[%emt 0:12:32]} Ra3 {[%emt 0:01:07]} 43. Rc7 {[%emt 0:09:50]} Kg6 {[%emt 0:03:48]} 44. Rd7 {[%emt 0:04:25]} Be5 {[%emt 0:04:19]} 45. Rbd5 {[%emt 0:03:26]} Ra1+ {[%emt 0:02:36]} 46. Kg2 {[%emt 0:00:58]} Ra2+ {[%emt 0:00:30]} 47. Kf3 {[%emt 0:02:26]} Ra3+ {[%emt 0:00:49]} 48. Ke2 {[%emt 0:00:30]} Ra2+ {[%emt 0:00:41]} 49. Kd3 {[%emt 0:00:31]} Rxh2 {[%emt 0:00:34]} 50. a6 {[%emt 0:00:23]} Ra2 {[%emt 0:00:39]} 51. a7 {[%emt 0:01:21]} Bxg3 {[%emt 0:00:48]} 52. Rb7 {[%emt 0:01:28]} Bf2 {[%emt 0:00:55]} 53. Rdd7 {[%emt 0:00:20]} f4 {[%emt 0:01:03]} 54. Rxg7+ {[%emt 0:00:05]} Kh5 {[%emt 0:00:54]} 55. Rb5+ {[%emt 0:00:44]} Kh4 {[%emt 0:00:27]} 56. Rb1 {[%emt 0:00:27]} Ra3+ {[%emt 0:01:07]} 57. Ke2 {[%emt 0:01:02]} Bd4 {[%emt 0:01:47]} 58. Rh1+ {[%emt 0:00:12]} Rh3 {[%emt 0:00:13]} 59. Rxh3+ {[%emt 0:00:05]} Kxh3 {[%emt 0:00:09]} 60. a8=Q {[%emt 0:00:02]} f3+ {[%emt 0:00:50]} 61. Qxf3+ {[%emt 0:00:08]} 1-0

[Event "CZE-ch U10 Open 2023"]
[Site "Teplice"]
[Date "2023.03.11"]
[Round "1.3"]
[White "Bucek, Vit"]
[Black "Vo, Daniel"]
[Result "0-1"]
[ECO "B56"]
[WhiteElo "1198"]
[BlackElo "1440"]
[Annotator "NA RC COMBH"]
[PlyCount "172"]
[EventDate "2023.03.09"]
[EventType "swiss"]
[EventCountry "CZE"]
[SourceTitle "playchess.com"]
[Source "ChessBase"]
[SourceQuality "1"]
[TimeControl "40/5400+30:1800+30"]

1. e4 {[%emt 0:00:03]} c5 {[%emt 0:00:04]} 2. Nf3 {[%emt 0:00:12]} d6 {[%emt 0:00:06]} 3. d4 {[%emt 0:00:06]} cxd4 {[%emt 0:00:09]} 4. Nxd4 {[%emt 0:00:08]} Nf6 {[%emt 0:00:10]} 5. Nc3 {[%emt 0:00:13]} Nc6 {[%emt 0:00:08]} 6. Bb5 {[%emt 0:00:23]} Bd7 {[%emt 0:00:07]} 7. Be3 {[%emt 0:00:30]} e6 {[%emt 0:00:23]} 8. f3 {[%emt 0:00:25]} Be7 {[%emt 0:00:17]} 9. O-O {[%emt 0:00:14]} O-O {[%emt 0:10:17]} 10. Qd2 {[%emt 0:00:22]} a6 {[%emt 0:00:12]} 11. Be2 {[%emt 0:01:02]} Rc8 {[%emt 0:00:22]} 12. Rad1 {[%emt 0:00:01]} Qc7 {[%emt 0:00:00]} 13. f4 {[%emt 0:00:51]} Rfd8 {[%emt 0:00:15]} 14. h3 {[%emt 0:01:14]} e5 {[%emt 0:00:20]} 15. fxe5 {[%emt 0:00:29]} dxe5 {[%emt 0:00:08]} 16. Nf3 {[%emt 0:01:01]} Bxh3 {[%emt 0:00:18]} 17. Qc1 {[%emt 0:00:19]} Be6 {[%emt 0:00:18]} 18. Nh4 {[%emt 0:01:22]} Nxe4 {[%emt 0:00:26]} 19. Nxe4 {[%emt 0:02:44]} Bxh4 {[%emt 0:00:18]} 20. Bg5 {[%emt 0:00:43]} Bxg5 {[%emt 0:00:49]} 21. Qxg5 {[%emt 0:01:33]} Kh8 22. Rd3 {[%emt 0:01:32]} Nd4 {[%emt 0:01:56]} 23. Bd1 {[%emt 0:00:55]} h6 {[%emt 0:01:07]} 24. Qh5 {[%emt 0:20:17]} Qb6 {[%emt 0:00:53]} 25. Kh1 {[%emt 0:03:24]} Bc4 {[%emt 0:00:21]} 26. Rf6 {[%emt 0:21:12]} Rc6 {[%emt 0:00:44]} 27. Rxc6 {[%emt 0:02:00]} Qxc6 {[%emt 0:00:42]} 28. Rc3 {[%emt 0:01:13]} Nb5 {[%emt 0:00:49]} 29. Re3 {[%emt 0:01:48]} Bd5 {[%emt 0:00:42]} 30. Rd3 {[%emt 0:01:44]} Nd4 {[%emt 0:00:47]} 31. Rc3 {[%emt 0:01:09]} Qe8 {[%emt 0:01:46]} 32. Bf3 {[%emt 0:01:28]} Qb5 {[%emt 0:01:08]} 33. b3 {[%emt 0:02:06]} Nxf3 {[%emt 0:00:26]} 34. gxf3 {[%emt 0:01:07]} Bxe4 {[%emt 0:00:16]} 35. fxe4 {[%emt 0:00:35]} Qf1+ {[%emt 0:00:03]} 36. Kh2 {[%emt 0:01:15]} Rd2+ {[%emt 0:00:03]} 37. Kg3 {[%emt 0:00:39]} Qg2+ {[%emt 0:00:05]} 38. Kh4 {[%emt 0:00:36]} Qh2+ {[%emt 0:00:05]} 39. Rh3 {[%emt 0:00:42]} Qf4+ {[%emt 0:00:02]} 40. Qg4 {[%emt 0:00:18]} Qxg4+ {[%emt 0:00:26]} 41. Kxg4 {[%emt 0:30:08]} Rxc2 {[%emt 0:30:01]} 42. Kf5 {[%emt 0:01:19]} f6 {[%emt 0:00:05]} 43. a4 {[%emt 0:00:42]} Rf2+ {[%emt 0:00:35]} 44. Kg6 {[%emt 0:01:02]} Rf4 {[%emt 0:00:41]} 45. Rd3 {[%emt 0:00:26]} Rg4+ {[%emt 0:00:07]} 46. Kf5 {[%emt 0:00:31]} Rg5+ {[%emt 0:00:04]} 47. Ke6 {[%emt 0:00:43]} h5 {[%emt 0:00:10]} 48. Rh3 {[%emt 0:00:48]} Kh7 {[%emt 0:00:03]} 49. Kf7 {[%emt 0:00:30]} Kh6 {[%emt 0:00:22]} 50. Ke6 {[%emt 0:00:30]} Rg4 {[%emt 0:00:14]} 51. Kf5 {[%emt 0:00:40]} Rf4+ {[%emt 0:00:07]} 52. Ke6 {[%emt 0:00:22]} Rxe4 {[%emt 0:00:09]} 53. Kd5 {[%emt 0:00:41]} Rg4 {[%emt 0:00:22]} 54. Ke6 {[%emt 0:00:36]} Kg5 {[%emt 0:00:24]} 55. Kd5 {[%emt 0:00:13]} Rh4 {[%emt 0:00:20]} 56. Rg3+ {[%emt 0:00:15]} Rg4 {[%emt 0:00:12]} 57. Rh3 {[%emt 0:00:12]} Kf4 {[%emt 0:00:05]} 58. Rxh5 {[%emt 0:00:38]} e4 {[%emt 0:00:08]} 59. Kd4 {[%emt 0:01:05]} e3 {[%emt 0:00:04]} 60. Rh1 {[%emt 0:00:32]} Kf3+ {[%emt 0:00:18]} 61. Kd3 {[%emt 0:00:40]} Re4 {[%emt 0:00:34]} 62. Rh3+ {[%emt 0:01:53]} Kg2 {[%emt 0:00:21]} 63. Kxe4 {[%emt 0:02:42]} Kxh3 {[%emt 0:00:02]} 64. Kxe3 {[%emt 0:00:15]} g5 {[%emt 0:00:01]} 65. Kf2 {[%emt 0:01:02]} f5 {[%emt 0:00:02]} 66. Kg1 {[%emt 0:00:13]} g4 {[%emt 0:00:02]} 67. b4 {[%emt 0:00:18]} g3 {[%emt 0:00:01]} 68. b5 {[%emt 0:00:58]} axb5 {[%emt 0:00:03]} 69. axb5 {[%emt 0:00:37]} g2 {[%emt 0:00:02]} 70. b6 {[%emt 0:00:39]} f4 {[%emt 0:00:02]} 71. Kf2 {[%emt 0:00:17]} f3 {[%emt 0:00:01]} 72. Kg1 {[%emt 0:00:08]} f2+ {[%emt 0:00:07]} 73. Kxf2 {[%emt 0:00:10]} Kh2 {[%emt 0:00:00]} 74. Kf3 {[%emt 0:00:12]} g1=Q {[%emt 0:00:04]} 75. Ke4 {[%emt 0:00:12]} Qxb6 {[%emt 0:00:02]} 76. Kd5 {[%emt 0:00:11]} Qb4 {[%emt 0:00:02]} 77. Ke6 {[%emt 0:00:12]} Qc5 {[%emt 0:00:01]} 78. Kd7 {[%emt 0:00:25]} Qb6 {[%emt 0:00:03]} 79. Kc8 {[%emt 0:00:18]} Qd6 {[%emt 0:00:03]} 80. Kxb7 {[%emt 0:00:19]} Kg3 {[%emt 0:00:03]} 81. Ka7 {[%emt 0:00:27]} Qb4 {[%emt 0:00:02]} 82. Ka6 {[%emt 0:00:16]} Kf4 {[%emt 0:00:03]} 83. Ka7 {[%emt 0:00:11]} Ke5 {[%emt 0:00:03]} 84. Ka8 {[%emt 0:00:16]} Kd6 {[%emt 0:00:02]} 85. Ka7 {[%emt 0:00:18]} Kc7 {[%emt 0:00:02]} 86. Ka8 {[%emt 0:00:19]} Qa4# {[%emt 0:00:02]} 0-1

[Event "CZE-ch U10 Open 2023"]
[Site "Teplice"]
[Date "2023.03.11"]
[Round "1.4"]
[White "Velim, Vojtech"]
[Black "Lutskiy, Mikhail"]
[Result "1-0"]
[ECO "D11"]
[WhiteElo "1369"]
[BlackElo "1150"]
[Annotator "NA RC COMBH"]
[PlyCount "97"]
[EventDate "2023.03.09"]
[EventType "swiss"]
[EventCountry "CZE"]
[SourceTitle "playchess.com"]
[Source "ChessBase"]
[SourceQuality "1"]
[TimeControl "40/5400+30:1800+30"]

1. d4 {[%emt 0:00:09]} d5 {[%emt 0:00:29]} 2. c4 {[%emt 0:00:16]} c6 {[%emt 0:00:38]} 3. Nf3 {[%emt 0:00:17]} Bf5 {[%emt 0:00:23]} 4. Nc3 {[%emt 0:00:25]} Nf6 {[%emt 0:00:17]} 5. Bg5 {[%emt 0:00:36]} e6 {[%emt 0:00:44]} 6. cxd5 {[%emt 0:01:30]} exd5 {[%emt 0:00:21]} 7. e3 {[%emt 0:00:51]} Be7 {[%emt 0:00:29]} 8. Bd3 {[%emt 0:00:57]} Bg6 {[%emt 0:00:35]} 9. Ne5 {[%emt 0:00:57]} Nbd7 {[%emt 0:00:38]} 10. Nxg6 {[%emt 0:01:11]} fxg6 {[%emt 0:00:32]} 11. Qc2 {[%emt 0:02:33]} Qb6 {[%emt 0:02:20]} 12. O-O {[%emt 0:01:34]} O-O {[%emt 0:00:22]} 13. Ne2 {[%emt 0:01:14]} Qc7 {[%emt 0:01:43]} 14. Nf4 {[%emt 0:03:13]} Qd6 {[%emt 0:02:04]} 15. Nh3 {[%emt 0:11:26]} Nh5 {[%emt 0:03:34]} 16. f4 {[%emt 0:02:15]} Nhf6 {[%emt 0:01:05]} 17. f5 {[%emt 0:02:56]} gxf5 {[%emt 0:02:14]} 18. Bf4 {[%emt 0:02:11]} Qb4 {[%emt 0:00:51]} 19. Bc7 {[%emt 0:04:13]} Ne4 {[%emt 0:02:30]} 20. Rfd1 {[%emt 0:04:43]} Bd8 {[%emt 0:02:10]} 21. Bxd8 {[%emt 0:05:56]} Raxd8 {[%emt 0:00:56]} 22. Nf4 {[%emt 0:02:57]} Qe7 {[%emt 0:00:26]} 23. Bxe4 {[%emt 0:01:36]} fxe4 {[%emt 0:00:56]} 24. Rf1 {[%emt 0:01:16]} Nb6 {[%emt 0:01:27]} 25. b3 {[%emt 0:01:12]} Nd7 {[%emt 0:00:20]} 26. Qe2 {[%emt 0:05:41]} Rde8 {[%emt 0:01:23]} 27. Qg4 {[%emt 0:02:50]} Rf6 {[%emt 0:01:08]} 28. Rf2 {[%emt 0:05:24]} Ref8 {[%emt 0:00:23]} 29. Raf1 {[%emt 0:01:00]} Qf7 {[%emt 0:02:35]} 30. Kh1 {[%emt 0:05:42]} Rf5 {[%emt 0:02:27]} 31. Ne6 {[%emt 0:01:22]} Qxe6 {[%emt 0:02:18]} 32. Rxf5 {[%emt 0:00:31]} Nf6 {[%emt 0:00:26]} 33. Qh3 {[%emt 0:02:35]} Qd6 {[%emt 0:00:36]} 34. Qg3 {[%emt 0:01:11]} Qb4 {[%emt 0:00:30]} 35. Rxf6 {[%emt 0:00:33]} Rxf6 {[%emt 0:00:22]} 36. Rxf6 {[%emt 0:00:08]} g6 {[%emt 0:00:51]} 37. Rf1 {[%emt 0:00:54]} Qb5 {[%emt 0:00:14]} 38. Qf4 {[%emt 0:00:39]} Qxf1+ {[%emt 0:00:40]} 39. Qxf1 {[%emt 0:00:14]} Kg7 {[%emt 0:00:09]} 40. Qf4 {[%emt 0:00:18]} b6 {[%emt 0:00:24]} 41. Qc7+ {[%emt 0:30:15]} Kh6 {[%emt 0:30:10]} 42. h4 {[%emt 0:00:37]} c5 {[%emt 0:00:18]} 43. dxc5 {[%emt 0:00:34]} bxc5 {[%emt 0:00:25]} 44. Kh2 {[%emt 0:00:47]} d4 {[%emt 0:00:13]} 45. Qxc5 {[%emt 0:00:58]} d3 {[%emt 0:00:11]} 46. Qxa7 {[%emt 0:00:34]} d2 {[%emt 0:00:14]} 47. Qd4 {[%emt 0:00:10]} g5 {[%emt 0:00:12]} 48. Qf6+ {[%emt 0:00:15]} Kh5 {[%emt 0:00:20]} 49. Qxg5# {[%emt 0:00:11]} 1-0

[Event "CZE-ch U10 Open 2023"]
[Site "Teplice"]
[Date "2023.03.11"]
[Round "1.5"]
[White "Broz, Pavel"]
[Black "Gernert, Tomas"]
[Result "0-1"]
[ECO "B30"]
[WhiteElo "1870"]
[BlackElo "1362"]
[Annotator "NA RC COMBH"]
[PlyCount "54"]
[EventDate "2023.03.09"]
[EventType "swiss"]
[EventCountry "CZE"]
[SourceTitle "playchess.com"]
[Source "ChessBase"]
[SourceQuality "1"]
[TimeControl "40/5400+30:1800+30"]

1. e4 {[%emt 0:30:02]} c5 {[%emt 0:01:10]} 2. Nf3 {[%emt 0:00:19]} Nc6 {[%emt 0:00:04]} 3. c3 {[%emt 0:00:21]} d5 {[%emt 0:00:13]} 4. e5 {[%emt 0:00:37]} Bg4 {[%emt 0:00:26]} 5. d3 {[%emt 0:01:37]} Nxe5 {[%emt 0:01:51]} 6. Be2 {[%emt 0:01:00]} Nxf3+ {[%emt 0:05:03]} 7. Bxf3 {[%emt 0:00:21]} Bxf3 {[%emt 0:00:10]} 8. Qxf3 {[%emt 0:00:10]} Nf6 {[%emt 0:00:13]} 9. Bf4 {[%emt 0:01:38]} e6 {[%emt 0:02:34]} 10. Nd2 {[%emt 0:01:14]} Bd6 {[%emt 0:01:04]} 11. O-O {[%emt 0:01:44]} O-O {[%emt 0:00:52]} 12. Bg5 {[%emt 0:01:34]} Be7 {[%emt 0:04:46]} 13. Rac1 {[%emt 0:01:38]} b5 {[%emt 0:03:23]} 14. c4 {[%emt 0:02:10]} dxc4 {[%emt 0:01:53]} 15. dxc4 {[%emt 0:00:14]} h6 {[%emt 0:00:07]} 16. Bxf6 {[%emt 0:00:33]} Bxf6 {[%emt 0:00:10]} 17. Nb3 {[%emt 0:00:38]} bxc4 {[%emt 0:03:23]} 18. Rxc4 {[%emt 0:01:32]} Bxb2 {[%emt 0:00:24]} 19. Rxc5 {[%emt 0:00:31]} a5 {[%emt 0:12:29]} 20. Rd1 {[%emt 0:08:16]} Qb6 {[%emt 0:03:30]} 21. Rc6 {[%emt 0:01:59]} Qb4 {[%emt 0:03:36]} 22. Rc2 {[%emt 0:04:40]} Bf6 {[%emt 0:01:48]} 23. Nd2 {[%emt 0:02:09]} Rab8 {[%emt 0:03:01]} 24. a3 {[%emt 0:01:01]} Qa4 {[%emt 0:01:26]} 25. Rc4 {[%emt 0:00:50]} Qb5 {[%emt 0:02:17]} 26. Rg4 {[%emt 0:03:52]} Bg5 {[%emt 0:00:47]} 27. Ne4 $17 {[%emt 0:01:25]} f5 {[%emt 0:03:37]} 0-1

[Event "CZE-ch U10 Open 2023"]
[Site "Teplice"]
[Date "2023.03.11"]
[Round "1.6"]
[White "Koutecky, Vaclav"]
[Black "Skoloud, Josef"]
[Result "1-0"]
[ECO "D00"]
[WhiteElo "2060"]
[BlackElo "1090"]
[Annotator "TA"]
[PlyCount "41"]
[EventDate "2023.03.09"]
[EventType "swiss"]
[EventCountry "CZE"]
[SourceTitle "playchess.com"]
[Source "ChessBase"]
[SourceQuality "1"]
[TimeControl "40/5400+30:1800+30"]

{[%evp 9,40,-62,-5,-36,133,73,58,18,133,22,30,20,118,-191,0,-169,-141,-157,189,-18,-22,-33,66,-281,246,0,1666,1604,2009,2106,29998,29999,29999]} 1. d4 {[%emt 0:00:01]} d5 {[%emt 0:00:12]} 2. e4 {[%emt 0:00:07]} dxe4 {[%emt 0:00:09]} 3. Nc3 {[%emt 0:00:10]} Nf6 {[%emt 0:00:08]} 4. Bg5 {[%emt 0:00:06]} Bf5 {[%emt 0:01:46]} 5. f3 {[%emt 0:01:16]} exf3 {[%emt 0:00:40]} (5... Nbd7 $15) 6. Qxf3 $11 {[%emt 0:00:26] D00: 1 d4 d5: Unusual lines.} Bxc2 {[%emt 0:05:02]} (6... Qc8 $15 {stays ahead.}) 7. Qxb7 {[%emt 0:02:16]} (7. Rc1 $142 c6 8. Rxc2) 7... Nbd7 $16 {[%emt 0:01:39]} 8. Bb5 {[%emt 0:03:03] And now Nf3 would win. White is slightly better.} (8. Nb5 $5 Rc8 9. Rc1 $16 (9. Qxa7 e6 $17)) 8... a6 {[%emt 0:06:52] [#]} 9. Bc6 $146 {[%emt 0:03:29] White is much more active.} ({And not} 9. Bxa6 Rb8 10. Qc6 Rb6 $11) ({White should play} 9. Nd5 $1 $16 {[%cal Rd5c7]} Rc8 10. Bxa6) ({Predecessor:} 9. Rc1 Bf5 10. Nge2 Qb8 11. Qc6 axb5 12. Nxb5 Rxa2 13. Nxc7+ Kd8 14. Na6 Rxa6 15. Qxa6 {0-1 Podolsky,A (2004)-Babiy,O (2128) UKR-ch sf Alushta 2006 (7)}) 9... Rb8 $11 {[%emt 0:03:28]} 10. Qxa6 {[%emt 0:03:45] Strongly threatening Nf3.} Rxb2 {[%emt 0:01:50]} (10... h6 $11 11. Qe2 hxg5 12. Qxc2 e6) 11. Nb5 $2 {[%emt 0:03:22][%mdl 8192]} (11. Nf3 $16 {keeps the pressure on.} h6 12. Ne5 hxg5 13. O-O) 11... Bd3 $2 {[%emt 0:07:05]} (11... e5 $19 {Hoping for ...Bb4+.} 12. a3 Be7) 12. Qa5 {[%emt 0:07:10]} (12. Nf3 $11 {and White is okay.}) 12... Bxb5 $19 {[%emt 0:05:24]} 13. Bxb5 {[%emt 0:02:01]} Rxg2 $2 {[%emt 0:02:30] [#]} (13... Qb8 $17 14. Bc6 e6) 14. Bc6 {[%emt 0:02:41]} (14. Bxf6 $1 $18 c6 15. Qxd8+ Kxd8 16. Bxc6 Rxg1+ 17. Rxg1 gxf6 18. Ke2) 14... Rc2 $11 {[%emt 0:10:44]} 15. Qa4 {[%emt 0:01:56]} Rb2 {[%emt 0:03:35]} (15... Rxc6 $15 16. Qxc6 e6) 16. Bb5 $2 {[%emt 0:01:39][%mdl 8192]} (16. Nf3 $1 $14 h6 17. Bxf6 gxf6 18. O-O-O) 16... Rg2 $4 {[%emt 0:02:16][%mdl 8192] [#]} (16... Rxb5 $19 17. Qxb5 Qa8) 17. Nf3 {[%emt 0:02:22]} (17. Bxf6 $1 $18 exf6 18. Bxd7+ {[%mdl 64] Deflection} Qxd7 19. Qa8+ Qd8 20. Qxg2) 17... Ne4 $2 {[%emt 0:03:03][%mdl 8192]} (17... e6 $11) 18. Ne5 $18 {[%emt 0:01:38][%cal Rb5d7]} c6 {[%emt 0:03:05]} 19. Bxc6 {[%emt 0:00:37] This pair of bishops is nice.} Qb6 {[%emt 0:00:52]} 20. Qa8+ {[%emt 0:00:55]} Qd8 {[%emt 0:01:06]} 21. Bxd7# {[%emt 0:00:14] White used his chance.   Weighted Error Value: White=1.62/Black=1.39} 1-0